Cogmind - Beta 16.1 @@@ ROGUE MODE // 2026.03.27 @ 17:33:15 Player: the Result: Destroyed by Y-45 Defender with Heavy Assault Rifle Performance ------------- Evolutions (2) 1000 Regions Visited (7) 1400 Robots Destroyed (2) 10 Value Destroyed (20) 20 Prototype IDs (23) 460 Alien Tech Used (0) 0 Bonus (885) 885 TOTAL SCORE: 3775 Bonus ------- Pacifist 564 Follower Combat Kills 21 Aligned with FarCom 300 Cogmind --------- Core Integrity 0/550 Matter 280/300 Energy 68/100 System Corruption 0% Temperature Cool (0) Movement Core (50) Location -8/Materials Parts ------- > --- POWER (1) -------- (None) > --- PROPULSION (4) --- (None) > --- UTILITY (4) ------ Improved Cooling System Advanced Visual Processing Unit Melee Analysis Suite Melee Analysis Suite > --- WEAPON (2) ------- (None) > --- INVENTORY (5) ---- High-capacity Storage Unit Transmission Jammer Trap Reconfigurator Greatsword Peak State ------------ > --- POWER ------------ (None) > --- PROPULSION ------- (None) > --- UTILITY ---------- Advanced Visual Processing Unit Melee Analysis Suite > --- WEAPON ----------- Greatsword > --- INVENTORY -------- Improved Cooling System High-capacity Storage Unit Melee Analysis Suite Transmission Jammer Trap Reconfigurator [Rating: 16] Favorites ----------- Power Ion Engine Engine Ion Engine Propulsion Light Treads Treads Light Treads Utility Melee Analysis Suite Device Sensor Array Storage Small Storage Unit Processor Melee Analysis Suite Weapon Greatsword Slashing Weapon Greatsword Build | -11 -10 -10 -9 -9 -9 -8 -8 ------- Run | Yrd Mat Min Mat Min Exi Min Mat Slots Evolved 4 | . . . 2 . . . 2 Power . | . . . . . . . . Propulsion 2 | . . . 1 . . . 1 Utility 2 | . . . 1 . . . 1 Weapon . | . . . . . . . . Parts Attached 14 | 4 . . 4 1 . . 5 Power 1 | 1 . . . . . . . Engine 1 | 1 . . . . . . . Core . | . . . . . . . . Reactor . | . . . . . . . . Propulsion 4 | 2 . . 2 . . . . Treads 4 | 2 . . 2 . . . . Leg . | . . . . . . . . Wheel . | . . . . . . . . Hover . | . . . . . . . . Flight . | . . . . . . . . Utility 7 | 1 . . 2 1 . . 3 Device 2 | . . . . 1 . . 1 Storage 1 | 1 . . . . . . . Processor 4 | . . . 2 . . . 2 Hackware . | . . . . . . . . Protection . | . . . . . . . . Artifact . | . . . . . . . . Weapon 2 | . . . . . . . 2 Energy Gun . | . . . . . . . . Energy Cannon . | . . . . . . . . Ballistic Gun . | . . . . . . . . Ballistic Cannon . | . . . . . . . . Launcher . | . . . . . . . . Special Weapon . | . . . . . . . . Impact Weapon . | . . . . . . . . Slashing Weapon 2 | . . . . . . . 2 Piercing Weapon . | . . . . . . . . Special Melee Weapon . | . . . . . . . . Unidentified Prototypes . | . . . . . . . . Parts Lost 6 | . . . . 2 . . 4 Power . | . . . . . . . . Propulsion 3 | . . . . 1 . . 2 Utility 1 | . . . . 1 . . . Weapon 2 | . . . . . . . 2 Highest Loss Streak 3 | . . . . 2 . . 3 To Critical Strikes . | . . . . . . . . Average Backups 4 | 1 3 5 5 5 4 5 5 Power . | . 1 2 1 1 . . . Propulsion . | 1 2 2 2 . . . . Utility 3 | . . 1 1 3 4 5 5 Weapon . | . . . . . . . . Tool/Special . | . . . . . . . . Unused Backups 9 | . . . 1 3 2 . 3 Power 3 | . . . 1 1 1 . . Propulsion 2 | . . . . 2 . . . Utility 4 | . . . . . 1 . 3 Weapon . | . . . . . . . . Tool/Special . | . . . . . . . . Average Slot Usage (%) 36 | . 50 28 28 47 44 39 34 Treads 22 | . 28 28 27 29 22 22 16 Device 1 | . . . . . 11 6 . Processor 11 | . . . 1 17 11 11 17 Peak Build Rating 16 | 4 4 2 10 11 9 9 16 Average Rating 7 | 3 3 2 3 9 8 8 11 On Entrance 5 | . 4 2 2 10 8 9 8 Avg Prop Armor Cover (%) 40 | . 41 41 42 42 39 40 37 Naked Turns . | . . . . . . . . Heaviest Build 10 | 10 10 . . 1 1 1 5 Greatest Support 63 | 40 40 3 3 63 3 3 3 Greatest Overweight (x) 1 | . . . . . . . 1 Average Overweight (x) . | . . . . . . . . Largest Inventory Capacity 8 | 8 8 5 5 5 5 5 5 Average Capacity 5 | 7 7 5 5 5 5 5 5 Most Carried 5 | 3 5 5 5 5 5 5 5 Average Carried 4 | 1 3 5 4 4 4 5 4 Final Capacity 8 | 8 5 5 5 5 5 5 5 Final Carried 5 | 3 5 5 5 5 5 5 5 Class Distribution -------------------- 97% | Mutant Dominant Class ---------------- Mutant | -10/Materials Mutant | -10/Mines Mutant | -9/Materials Mutant | -9/Mines Mutant | -9/Exiles Mutant | -8/Mines Mutant | -8/Materials Resources | -11 -10 -10 -9 -9 -9 -8 -8 ----------- Run | Yrd Mat Min Mat Min Exi Min Mat Matter Collected 306 | 222 . 18 16 20 20 . 10 Remotely . | . . . . . . . . Salvage Created 25 | . . . . . . . 25 Parts 4 | . . . . . . . 4 Haulers Intercepted . | . . . . . . . . Recyclers Shooed 1 | . . . 1 . . . . Parts Field Recycled . | . . . . . . . . Retrieved Matter . | . . . . . . . . Parts Self-Destructed . | . . . . . . . . Prevented . | . . . . . . . . Parts Restored . | . . . . . . . . Kills | -11 -10 -10 -9 -9 -9 -8 -8 ------- Run | Yrd Mat Min Mat Min Exi Min Mat Combat Hostiles Destroyed 2 | . . . . . . . 2 Melee 2 | . . . . . . . 2 Classes Destroyed 1 | . . . . . . . 1 Swarmer 2 | . . . . . . . 2 Best Kill Streak 2 | . . . . . . . 2 Combat Bots Only 2 | . . . . . . . 2 Max Kills in Single Turn 1 | . . . . . . . 1 Gunslinging . | . . . . . . . . Exploded . | . . . . . . . . Melee 1 | . . . . . . . 1 Uniques/NPCs Destroyed . | . . . . . . . . Combat | -11 -10 -10 -9 -9 -9 -8 -8 -------- Run | Yrd Mat Min Mat Min Exi Min Mat Hostile Shots Fired 226 | . 8 . 41 35 . 10 132 Missed 75 | . 2 . 18 14 . 6 35 Hits 151 | . 6 . 23 21 . 4 97 Projectile 151 | . 6 . 23 21 . 4 97 Critical Strikes 2 | . . . . . . . 2 Damage Taken 1524 | . 46 3 267 180 . 66 962 Core 731 | . 22 3 66 55 . 30 555 Absorbed by Shields . | . . . . . . . . Core Remaining (%) 84 | 100 . 90 . . . 62 . Volleys Fired . | . . . . . . . . Largest . | . . . . . . . . Hottest . | . . . . . . . . Shots Fired . | . . . . . . . . Gun . | . . . . . . . . Cannon . | . . . . . . . . Launcher . | . . . . . . . . Special . | . . . . . . . . Kinetic . | . . . . . . . . Thermal . | . . . . . . . . Explosive . | . . . . . . . . Electromagnetic . | . . . . . . . . Robot Hit Streak . | . . . . . . . . Robot Miss Streak . | . . . . . . . . Penetration Max . | . . . . . . . . Secondary Targets . | . . . . . . . . Shots Hit Robots 5 | . . . . . . . 5 Core Hits 3 | . . . . 1 . . 2 Critical Kills . | . . . . . . . . Critical Parts Destroyed . | . . . . . . . . Critical Strikes . | . . . . . . . . Melee Attacks 7 | . . . . . . . 7 Impact . | . . . . . . . . Slashing 7 | . . . . . . . 7 Piercing . | . . . . . . . . Sneak Attacks . | . . . . . . . . Combat Hostiles . | . . . . . . . . Follow-up Attacks . | . . . . . . . . Damage Inflicted 326 | . . 7 36 7 . 22 254 Guns . | . . . . . . . . Cannons . | . . . . . . . . Explosions . | . . . . . . . . Melee 254 | . . . . . . . 254 Ramming 72 | . . 7 36 7 . 22 . Kinetic . | . . . . . . . . Thermal . | . . . . . . . . Explosive . | . . . . . . . . Electromagnetic . | . . . . . . . . Impact . | . . . . . . . . Slashing 254 | . . . . . . . 254 Piercing . | . . . . . . . . Highest Corruption 3 | . . . 3 3 3 3 . Average Corruption 2 | . . . 1 3 3 3 . Corruption Purged . | . . . . . . . . Corruption Blocked . | . . . . . . . . Effects 11 | . . . . 3 6 2 . Message Errors 3 | . . . . 2 1 . . Matter Fused 1 | . . . . . 1 . . Heat Flow Errors 1 | . . . . . 1 . . Energy Discharges 1 | . . . . . 1 . . Data Loss (minor) 2 | . . . . 1 1 . . Data Loss (major) 2 | . . . . . 1 1 . Alerts 1 | . . . . . . 1 . Overload Shots . | . . . . . . . . Overflow Damage 60 | . . . . . . . 60 Projectiles . | . . . . . . . . Explosions . | . . . . . . . . Melee 60 | . . . . . . . 60 Knockbacks 1 | . . 1 . . . . . Impact 1 | . . 1 . . . . . Kinetic . | . . . . . . . . Secondary . | . . . . . . . . Self-Inflicted Damage 29 | . . 3 15 . . 11 . Shots . | . . . . . . . . Rammed 22 | . . 1 10 7 . 4 . Targets Rammed 22 | . . 1 10 7 . 4 . Kicked . | . . . . . . . . Crushed . | . . . . . . . . Highest Temperature 196 | . . . . . 196 . . Average Temperature 112 | . . . . . 112 . . Received Heat Transfer 216 | . . . 78 12 . . 126 Siege Activations . | . . . . . . . . Martial Activations . | . . . . . . . . Shielding Activations . | . . . . . . . . Robots Disrupted . | . . . . . . . . Combat Hostiles . | . . . . . . . . Robots Corrupted . | . . . . . . . . Combat Hostiles . | . . . . . . . . Parts Fried . | . . . . . . . . Impact Corruptions . | . . . . . . . . Robots Melted . | . . . . . . . . Combat Hostiles . | . . . . . . . . Parts Melted . | . . . . . . . . Heat Transferred . | . . . . . . . . Parts Sabotaged . | . . . . . . . . Parts Stolen . | . . . . . . . . Parts Stripped . | . . . . . . . . Power Chain Reactions . | . . . . . . . . Alert | -11 -10 -10 -9 -9 -9 -8 -8 ------- Run | Yrd Mat Min Mat Min Exi Min Mat Maximum Alert Level . | . . . . . . . . Low Security (%) 100 | 100 100 100 100 100 . 100 100 Level 1 . | . . . . . . . . Level 2 . | . . . . . . . . Level 3 . | . . . . . . . . Level 4 . | . . . . . . . . Level 5 . | . . . . . . . . High Security . | . . . . . . . . Max Security . | . . . . . . . . Peak Influence 68 | . . 68 35 13 . 15 60 Initial 13 | . . 5 . 13 . . 1 Average 5 | . . 19 5 1 . 2 1 Influence Increases 273 | . 15 78 80 . . 15 85 Destroy 0b10 Robot/C 100 | . . 60 . . . . 40 Destroy Leader 10 | . . 10 . . . . . Allied During Kill 8 | . . 8 . . . . . Successful Hack 5 | . . . 5 . . . . Partial Spotted 15 | . . . . . . . 15 Lose Combat Pursuer 135 | . 15 . 75 . . 15 30 Influence Decreases 231 | . . 93 45 35 . 10 48 Entered New Map 36 | . . 10 . 22 . . 4 Time Decay 148 | . . 83 25 13 . 10 17 Lost Part 27 | . . . . . . . 27 Lost Ally 20 | . . . 20 . . . . Squads Dispatched 5 | . . . 3 1 . . 1 Investigation 2 | . . . 1 1 . . . Extermination . | . . . . . . . . Reinforcement 3 | . . . 2 . . . 1 Assault . | . . . . . . . . Garrison . | . . . . . . . . Intercept . | . . . . . . . . Searches Triggered . | . . . . . . . . Construction Impeded . | . . . . . . . . Haulers Reinforced . | . . . . . . . . Active Scanning Responses . | . . . . . . . . Cargo Convoy Interrupts . | . . . . . . . . Stealth | -11 -10 -10 -9 -9 -9 -8 -8 --------- Run | Yrd Mat Min Mat Min Exi Min Mat Distress Signals 4 | . . . 2 . . 1 1 Communications Jammed . | . . . . . . . . Distress Signals . | . . . . . . . . Times Spotted 45 | . 4 1 17 6 . 3 14 Peak Tracking Total 12 | . 6 . 8 3 . 3 12 Tactical Retreats 5 | . 1 . 2 . . 1 1 Traps | -11 -10 -10 -9 -9 -9 -8 -8 ------- Run | Yrd Mat Min Mat Min Exi Min Mat Traps Triggered . | . . . . . . . . Indirectly . | . . . . . . . . Trap Hack Attempts . | . . . . . . . . Triggered . | . . . . . . . . Disarmed . | . . . . . . . . Reprogrammed . | . . . . . . . . Reused . | . . . . . . . . Traps Extracted . | . . . . . . . . Installed . | . . . . . . . . Triggered . | . . . . . . . . Machines | -11 -10 -10 -9 -9 -9 -8 -8 ---------- Run | Yrd Mat Min Mat Min Exi Min Mat Machines Disabled . | . . . . . . . . Max in Single Turn . | . . . . . . . . Machines Repaired . | . . . . . . . . Machines Dismantled . | . . . . . . . . Machines Sabotaged . | . . . . . . . . Overloaded Fab Kills . | . . . . . . . . Hacking | -11 -10 -10 -9 -9 -9 -8 -8 --------- Run | Yrd Mat Min Mat Min Exi Min Mat Machines Accessed 7 | . . . 4 1 2 . . Terminals 2 | . . . 2 . . . . Fabricators . | . . . . . . . . Repair Stations . | . . . . . . . . Recycling Units 2 | . . . 2 . . . . Scanalyzers . | . . . . . . . . Garrison Access . | . . . . . . . . Total Hacks 10 | . . . 7 1 2 . . Successful 5 | . . . 2 1 2 . . Failed 5 | . . . 5 . . . . Catastrophic 1 | . . . 1 . . . . Database Lockouts . | . . . . . . . . Manual 5 | . . . 4 . 1 . . Terminals 4 | . . . 4 . . . . Fabricators . | . . . . . . . . Repair Stations . | . . . . . . . . Recycling Units 3 | . . . 3 . . . . Scanalyzers . | . . . . . . . . Garrison Access . | . . . . . . . . Terminal Hacks 3 | . . . . 1 2 . . Record 1 | . . . . . 1 . . Open Door 1 | . . . . 1 . . . Proto ID Catalog 1 | . . . . . 1 . . Fabricator Hacks . | . . . . . . . . Repair Station Hacks . | . . . . . . . . Recycling Unit Hacks 1 | . . . 1 . . . . Retrieve Components 1 | . . . 1 . . . . Scanalyzer . | . . . . . . . . Garrison Access Hacks . | . . . . . . . . Unauthorized Hacks 1 | . . . 1 . . . . Terminals 1 | . . . 1 . . . . Botnet 1 | . . . 1 . . . . Fabricators . | . . . . . . . . Repair Stations . | . . . . . . . . Recycling Units . | . . . . . . . . Scanalyzers . | . . . . . . . . Garrison Access . | . . . . . . . . Data Cores Recovered . | . . . . . . . . Used . | . . . . . . . . Hacking Detections 3 | . . . 3 . . . . Full Trace Events 1 | . . . 1 . . . . Feedback Events . | . . . . . . . . Feedback Blocked . | . . . . . . . . Robot Schematics Acquired . | . . . . . . . . Robots Built . | . . . . . . . . Authchips . | . . . . . . . . Time . | . . . . . . . . Total Robot Build Rating . | . . . . . . . . Part Schematics Acquired . | . . . . . . . . Parts Built . | . . . . . . . . Authchips . | . . . . . . . . Time . | . . . . . . . . Total Part Build Rating . | . . . . . . . . Part Studies Acquired . | . . . . . . . . Parts Repaired . | . . . . . . . . Time . | . . . . . . . . Parts Recycled . | . . . . . . . . Recycled Matter . | . . . . . . . . Retrieved Matter . | . . . . . . . . Retrieved Components 3 | . . . 3 . . . . Parts Scanalyzed . | . . . . . . . . Part Schematics Acquired . | . . . . . . . . Parts Damaged . | . . . . . . . . Bothacking | -11 -10 -10 -9 -9 -9 -8 -8 ------------ Run | Yrd Mat Min Mat Min Exi Min Mat Used RIF Installer . | . . . . . . . . Robots Hacked . | . . . . . . . . Non-combat . | . . . . . . . . Combat . | . . . . . . . . Robot Hacks Applied . | . . . . . . . . Relay Couplers Released . | . . . . . . . . Fabnet Peak Effective % . | . . . . . . . . Robots Rewired . | . . . . . . . . Allies Hacked . | . . . . . . . . Hacks Repelled . | . . . . . . . . Allies | -11 -10 -10 -9 -9 -9 -8 -8 -------- Run | Yrd Mat Min Mat Min Exi Min Mat Total Allies 3 | . . 2 . 1 . . . Largest Group 2 | . . 2 2 1 1 1 . Highest-Rated Group 45 | . . 45 45 31 31 31 . Highest-Rated Ally 31 | . . 31 31 31 31 31 . Total Orders . | . . . . . . . . Ally Attacks 14 | . . 5 9 . . . . Total Damage 170 | . . 88 82 . . . . Kills 3 | . . 3 . . . . . Allies Corrupted . | . . . . . . . . Allies Melted . | . . . . . . . . Intel | -11 -10 -10 -9 -9 -9 -8 -8 ------- Run | Yrd Mat Min Mat Min Exi Min Mat Active Infowar (turns) 947 | . . . . 17 192 14 724 Optics 724 | . . . . . . . 724 Sensors 223 | . . . . 17 192 14 . Robot Analysis Total . | . . . . . . . . Derelict Logs Recovered 4 | . . 1 . 3 . . . Drone Launches . | . . . . . . . . Drone Recoveries . | . . . . . . . . Exploration | -11 -10 -10 -9 -9 -9 -8 -8 ------------- Run | Yrd Mat Min Mat Min Exi Min Mat Turns Passed 1823 | 73 58 294 173 222 192 83 728 Spaces Moved 1845 | 42 53 432 269 383 333 157 176 Core 1776 | 2 25 432 269 382 333 157 176 Treads 69 | 40 28 . . 1 . . . Legs . | . . . . . . . . Wheels . | . . . . . . . . Hover . | . . . . . . . . Flight . | . . . . . . . . Fastest Speed 50 | 50 50 50 50 50 50 50 50 Average Speed 54 | 154 108 50 50 50 50 50 51 Slowest Speed 160 | 160 160 50 50 160 50 50 100 Overloaded Moves . | . . . . . . . . Propulsion Burnouts . | . . . . . . . . Robots Hopped . | . . . . . . . . Potential Cave-ins . | . . . . . . . . Cave-ins Triggered . | . . . . . . . . Exploration Rate (%) 46 | 3 21 91 30 87 70 52 18 Regions Visited 7 Branch Regions 4 Pre-discovered Areas 3 | . . 1 . 1 1 . . Known Exits Taken . | . . . . . . . . Unknown Exits Taken 7 | 1 1 1 1 1 1 1 . Scrap Searched 5 | . . 1 . 4 . . . Spaces Dug . | . . . . . . . . Terrain Destroyed . | . . . . . . . . Melee . | . . . . . . . . Projectile . | . . . . . . . . AOE . | . . . . . . . . Terrain Rammed . | . . . . . . . . Walls Destroyed . | . . . . . . . . Machines Disabled . | . . . . . . . . Actions | -11 -10 -10 -9 -9 -9 -8 -8 --------- Run | Yrd Mat Min Mat Min Exi Min Mat Total 2644 | 48 54 509 306 409 360 161 797 Wait 737 | . . 77 17 13 22 . 608 Move 1838 | 41 52 431 268 382 332 156 176 Hop . | . . . . . . . . Pick Up 12 | 3 . . 2 3 3 . 1 Fast Attach 12 | 4 . . 4 1 . . 3 Attach 2 | . . . . . . . 2 Detach 2 | . 2 . . . . . . Swap 1 | . . . 1 . . . . Drop 11 | . . . 4 3 3 1 . Fire . | . . . . . . . . Melee 7 | . . . . . . . 7 Ram 15 | . . 1 10 . . 4 . Kick . | . . . . . . . . Crush 7 | . . . . 7 . . . Escape Stasis . | . . . . . . . . Rewire . | . . . . . . . . Trap . | . . . . . . . . Miscellaneous . | . . . . . . . . Route ------- -11/Scrapyard -10/Materials -10/Mines (discovered 2 exits: *Mat x2) -9/Materials -9/Mines (discovered 3 exits: [*Mat x2] / *Exi) -9/Exiles -8/Mines -8/Materials (discovered 1 exit: Fac) History --------- Turn | Location | Event 39 | -11/Scrapyard | Discovered new exit (range 15) 74 | -11/Scrapyard | Entered Materials 129 | -10/Materials | Discovered new exit (range 7) 132 | -10/Materials | Entered Mines 133 | -10/Mines | Learned location of Storage (-9) 160 | -10/Mines | Learned Materials trap positions 165 | -10/Mines | Found a hidden stash of uninstalled traps 193 | -10/Mines | Discovered new exit (range 11) 312 | -10/Mines | Build established: Mutant 322 | -10/Mines | Discovered new exit (range 15) 426 | -10/Mines | Entered Materials 426 | -9/Materials | Accompanied by 2 allies 426 | -9/Materials | Evolved 2 slots: Propulsion x1, Utility x1 427 | -9/Materials | Loaded intel: 24 trap records 432 | -9/Materials | Led the pair of lost Derelicts to an unsafe place 591 | -9/Materials | Discovered new exit (range 14) 599 | -9/Materials | Entered Mines 634 | -9/Mines | Met a Derelict shopkeep closing up shop 692 | -9/Mines | Discovered new exit (range 15) 731 | -9/Mines | Learned location of Zion (-6) 734 | -9/Mines | Learned Materials stockpile data 744 | -9/Mines | Discovered new exit (range 12) 790 | -9/Mines | Received a Mining Laser from a helpful Derelict 813 | -9/Mines | Deemed a non-threat by the Exiles lab entrance 814 | -9/Mines | Discovered new exit (range 5) 821 | -9/Mines | Entered Exiles 821 | -9/Exiles | Accompanied by 1 ally 834 | -9/Exiles | Met 8R-AWN 842 | -9/Exiles | Met EX-HEX 868 | -9/Exiles | Met EX-DEC 889 | -9/Exiles | Met EX-BIN 895 | -9/Exiles | Aligned with FarCom system 895 | -9/Exiles | Given EX-Vault access code 908 | -9/Exiles | Opened EX-Vault 912 | -9/Exiles | Found Trap Reconfigurator 923 | -9/Exiles | Warned to stay clear of 0b10 Research branches 957 | -9/Exiles | Discovered new exit (range 10) 1013 | -9/Exiles | Left Exiles lab with Trap Reconfigurator 1013 | -9/Exiles | Entered Mines 1013 | -8/Mines | Accompanied by 1 ally 1090 | -8/Mines | Discovered new exit (range 15) 1096 | -8/Mines | Entered Materials 1096 | -8/Materials | Evolved 2 slots: Propulsion x1, Utility x1 1097 | -8/Materials | Identified exit to Factory 1811 | -8/Materials | Core integrity fell below 50% 1820 | -8/Materials | Core integrity fell below 20% 1824 | -8/Materials | Destroyed by Y-45 Defender with Heavy Assault Rifle Last Messages --------------- 01795_ Destroyed Unknown Flight Unit. 01795_ Destroyed Lgt. Assault Rifle. 01796_ U-05 Engineer lays Concrete. 01797_ U-05 Engineer builds a Wall. 01799_ Destroyed Unknown Flight Unit. 01802_ S-10 Pest destroyed. 01805_ K-01 Serf collects debris. 01805_ Greatsword destroyed. 01805_ Acquired 5 matter. 01807_ Acquired Greatsword. 01808_ S-10 Pest destroyed. 01809_ K-01 Serf collects debris. 01814_ S-10 Pest destroyed. 01815_ K-01 Serf collects debris. 01818_ Greatsword destroyed. 01818_ K-01 Serf collects debris. 01820_ Acquired 5 matter. 01822_ K-01 Serf collects debris. 01823_ Acquired Greatsword. 01823_ Critical hit (Burn: +37). Map ----- +----------------------------------------------------+ | ?????????????????????????????????????????????????? | | ?????????????????????????????????????????????????? | | ?????????????????????????????????????????????????? | | ?????????????????????????????????????????????????? | | ?????????????????????????????????????????????????? | | ?????????????????????????????????????????????????? | | ?????????????????????=???????????????????????????? | | ?????????????????????????????????????????????????? | | ??????????????????????????g??????????????????????? | | ?????????????????????????????????????????????????? | | ?????????????????????????????????????????????????? | | ?????????????????????????????????????????????????? | | ?????????????????????????????????????????????????? | | ?????????????????????????????????????????????????? | | ?????????????###+##??????????????????????????????? | | ?????????????# g ????g?????????????????????????? | | ?????????????# ????=?????????????????????????? | | ?????????????w ??????????????????????????????? | | ?????????????? ??????????????????????????????? | | ??????????????! ??????????????????????????????? | | ??????????????# #??????????????????????????????? | | ??????????????# #??????????????????????????????? | | ??????????????# #??????????????????????????????? | | ??????????????+ #??########????????????????????? | | ??????????????# #??#[[ /[[#????????????????????? | | ???########???# #??#[[%@[[#????????????????????? | | ???# !! * ?## ##?# ==k #????????????????????? | | ???# !! w # ###s % ##???????????????????? | | ???# ! # [Y ####????????????????? | | ???# + T u=%g s ??????????? | | ?????""" """# * Y ????????? | | ?????????????# Y### ### ????????? | | ?????????????## r##? ?# ############????????? | | ??????????????# #?####?# #???????????????????? | | ???????######## #?????## ##??????????????????? | | ???????# + #?????# #??????????????!???? | | ???????# ! # #?????# #??????????????????? | | ???????# # #?????# #??????????????????? | | ???????# //! ?# #?????? #??????????????????? | | ???????# //! ?# #?????? #??????????????????? | | ???????# /!!??# ######## ##??????????????????? | | ???????#####??# #! # #???????????????????? | | ??????????????# # """ # #???????????????????? | | ?????########## # """ + #???????????????????? | | ?????# # # """ # #???????????????????? | | ?????# # # # #???????????????????? | | ?????# # # # ###################?? | | ?????# # ##+##### #?? | | ?????# # #???# #?? | | ?????# / * #???# #?? | +----------------------------------------------------+ Best States ------------- Heat Dissipation 31 Energy Generation 10 Energy Capacity 250 Matter Stores 300 Matter Capacity 300 Sight Range 20 Robot Scan Range 14 Terrain Scan Density 10 Evasion (%) 50 Melee Accuracy 10 Recoil Reduction 3 Item Schematics ----------------- None Robot Schematics ------------------ None Fabricated ------------ Nothing Repaired ---------- Nothing Studied --------- None Alien Tech Used ----------------- None Achievements -------------- None Challenges ------------ None Game ------ Seed DoorMiningDrillbomb Manual? 0 Play Time 00:17:41 Cumulative 663.6 hours Start 2026.03.27 @ 17:17:06 End 2026.03.27 @ 17:33:15 Sessions 1 Manual Loads 0 Difficulty Rogue Special Mode None Game No. 365 Rogue 365 Adventurer 0 Explorer 0 Win Type - Total 28 Types 14/1/6/2/1/0/1/2/1/0 Lore% 92 Gallery% 85 Achievement% 77 Wizard Run 0 Options --------- Layout 1 ASCII 0 Keyboard 0 Movement Numpad Keybinds 0 Fullscreen 2 Font 24/Smallcaps Map View 50x40 Zoom Use 0% Tactical HUD 1 Map Filters NONE Filters NONE Steam 1 RUN: 5564eefe-ea13-44b9-9afc-eced3723e8b8